bitfinex/quotes_SOLUSD_20260223
["timestamp","ask_amount","ask_price","bid_price","bid_amount"]
[1771854805190,0.62810379,81.006,80.983,0.64713204]
[1771854807390,10.27699259,80.99,80.972,0.64713204]
[1771854807697,0.62810379,80.989,80.966,0.64713204]
[1771854809790,0.62810379,80.995,80.968,0.64713204]
[1771854809993,0.62810379,81.009,80.981,0.64713204]
[1771854810611,0.62810379,81.015,80.981,0.64713204]
[1771854810777,0.62810379,81.015,80.991,0.64713204]
[1771854811874,12.34265009,81.02,80.993,0.64713204]
[1771854812090,0.1,81.12,81.021,0.14216157]
[1771854812281,0.62810379,81.116,81.1,10.27699259]
[1771854812483,0.62810379,81.116,81.083,0.40843578]
[1771854812688,0.62810379,81.116,81.09,10.27699259]
[1771854812899,0.62810379,81.099,81.067,6.45157785]
[1771854813199,10.27699259,81.09,81.067,6.45157785]
[1771854813595,10.27699259,81.09,81.06,10.27699259]
[1771854813998,0.62810379,81.089,81.052,0.41177039]
[1771854814314,0.62810379,81.089,81.053,0.41177039]
[1771854814495,0.62810379,81.089,81.06,10.27699259]
[1771854816197,0.62810379,81.089,81.061,12.33638864]
[1771854821404,0.62810379,81.089,81.06,10.25577678]
[1771854822292,10.25577678,81.07,81.047,12.33837071]
[1771854822499,0.62810379,81.069,81.047,12.33837071]
[1771854823708,0.62810379,81.069,81.04,10.69752085]
[1771854823709,0.62810379,81.069,81.041,12.78602825]
[1771854824011,0.62810379,81.069,81.017,3.69383402]
[1771854824193,0.62810379,81.049,81.018,12.34293613]
[1771854824599,0.62810379,81.049,81.02,10.25577678]
[1771854824796,0.62810379,81.049,81.02,10.71190751]
[1771854825110,0.62810379,81.049,81.021,0.45613073]
[1771854826409,0.62810379,81.063,81.031,0.46081654]
[1771854826614,0.62810379,81.063,81.04,10.25577678]
[1771854826794,0.62810379,81.063,81.031,0.46081654]
[1771854828514,0.62810379,81.063,81.032,12.34080363]
[1771854829714,0.64846597,81.059,81.032,12.34080363]
[1771854831697,0.64846597,81.059,81.033,0.48782257]
[1771854832509,0.64846597,81.059,81.032,12.34080363]
[1771854833419,0.64846597,81.057,81.024,0.49641654]
[1771854833619,0.64846597,81.057,81.026,0.49641654]
[1771854834513,12.33714962,81.056,81.026,0.49641654]
[1771854834713,0.64846597,81.055,81.026,0.49641654]
[1771854836223,0.64846597,81.055,81.004,6.2]
[1771854836224,0.64846597,81.063,81.031,0.50894086]
[1771854836525,0.64846597,81.071,81.041,0.50894086]
[1771854837525,0.64846597,81.069,81.041,0.50894086]
[1771854837820,0.64846597,81.069,81.032,0.51302009]
[1771854838815,0.64846597,81.069,81.034,0.51705248]
[1771854839011,0.64846597,81.059,81.033,12.34065133]
[1771854840523,0.64846597,81.059,81.028,12.34141284]
[1771854842313,0.64846597,81.059,81.028,0.53272415]
[1771854843410,0.64846597,81.049,81.021,12.87900932]
[1771854843629,0.64846597,81.049,81.021,43.73520709]
[1771854845627,0.64846597,81.049,81.014,0.54401169]
[1771854845826,0.64846597,81.047,81.011,43.20400932]
[1771854846029,10.90424275,81.02,80.998,12.34598385]
[1771854846230,0.64846597,81.029,80.999,0.54768811]
[1771854847234,0.64846597,81.029,81.0,12.34567901]
[1771854847731,0.64846597,81.029,81.0,12.89700131]
[1771854849231,0.64846597,81.029,81.001,0.55846593]
[1771854851121,0.64846597,81.029,81.002,12.34537418]
[1771854851439,0.64846597,81.029,81.003,0.56544639]
[1771854852418,0.64846597,81.029,80.979,61.74383034]
[1771854852419,0.64846597,81.046,81.01,3.83496379]
[1771854852734,0.64846597,81.046,81.011,0.56887661]
[1771854853735,7.52879781,81.08,81.011,0.56887661]
[1771854853736,0.64846597,81.089,81.041,0.57226743]
[1771854853927,0.64846597,81.089,81.051,0.5756193]
[1771854854928,0.64846597,81.069,81.032,0.57893267]
[1771854855125,0.64846597,81.069,81.033,30.85142661]
[1771854855425,0.64846597,81.069,81.034,0.57893267]
[1771854856939,0.64846597,81.069,81.036,0.58220799]
[1771854858354,0.76603565,81.077,81.041,0.59180993]
[1771854860636,12.33248603,81.087,81.04,10.26045473]
[1771854860637,0.77244873,81.084,81.043,0.6010848]
[1771854860844,0.77244873,81.084,81.045,0.6010848]
[1771854861135,0.77244873,81.084,81.051,0.60410567]
[1771854861734,0.77244873,81.079,81.052,12.33775847]
[1771854864042,0.77244873,81.077,81.046,0.6129617]
[1771854865043,0.77244873,81.069,81.045,12.33882411]
[1771854865233,0.77244873,81.069,81.045,12.95467027]
[1771854865626,0.77244873,81.069,81.041,12.33943312]
[1771854865822,0.77244873,81.059,80.973,6.2]
[1771854866030,0.16919147,81.059,81.009,0.70754132]
[1771854866229,0.16919147,81.055,81.011,0.70754132]
[1771854866448,10.26045473,81.05,81.011,0.70754132]
[1771854866739,0.16919147,81.049,81.011,0.70754132]
[1771854867952,0.16919147,81.049,81.01,10.26045473]
[1771854867953,0.16919147,81.049,81.013,0.70754132]
[1771854868527,10.26045473,81.04,81.013,0.70754132]
[1771854870047,12.51879264,81.047,81.015,0.70754132]
[1771854871358,10.26045473,81.05,81.015,0.70754132]
[1771854871934,10.26045473,81.05,81.017,0.70754132]
[1771854873349,0.18296431,81.055,81.021,0.70754132]
[1771854873853,10.26045473,81.05,81.021,0.70754132]
[1771854874248,10.26045473,81.06,81.021,0.70754132]
[1771854874648,0.19344569,81.059,81.021,0.70754132]
[1771854875237,12.33723716,81.056,81.022,12.34232677]
[1771854875442,0.19685953,81.055,81.023,0.70754132]
[1771854876351,10.26045473,81.05,81.025,0.70754132]
[1771854877056,0.20357003,81.074,81.041,0.70754132]
[1771854877241,0.20357003,81.059,81.026,0.70754132]
[1771854878343,0.20686759,81.057,81.026,0.70754132]
[1771854879752,0.21012727,81.049,81.019,0.70754132]
[1771854880640,0.2133495,81.029,80.987,0.70754132]
[1771854880842,3.83240149,81.0,80.98,0.70754132]
[1771854881960,12.34583143,80.999,80.962,0.70754132]
[1771854882347,3.83240149,80.99,80.962,0.70754132]
[1771854882956,4.05519734,80.99,80.962,0.70754132]
[1771854883358,12.34735581,80.989,80.962,0.70754132]
[1771854883939,123.41930598,81.025,80.934,6.2]
[1771854883940,12.57033238,81.008,80.971,0.70754132]
[1771854884148,12.34394905,81.012,80.981,0.70754132]
[1771854885765,3.8387031,81.01,80.983,0.70754132]
[1771854888666,12.34430742,81.009,80.983,0.70754132]
[1771854889662,0.24360486,81.022,80.99,3.8387031]
[1771854889869,0.24360486,81.035,81.001,0.75941918]
[1771854890444,0.24644258,81.029,80.988,0.75941918]
[1771854890646,3.8387031,81.01,80.988,0.75941918]
[1771854891763,12.34354556,81.014,80.988,0.75941918]
[1771854892261,3.8387031,81.01,80.988,0.75941918]
[1771854892565,3.8387031,81.01,80.967,30.87645259]
[1771854892566,3.8387031,81.0,80.981,0.75941918]
[1771854892761,3.8387031,80.99,80.969,0.75941918]
[1771854893783,0.2520206,80.999,80.969,0.75941918]
[1771854893984,3.8387031,81.0,80.971,0.75941918]
[1771854894486,12.34583143,80.999,80.971,0.75941918]
[1771854895779,12.34583143,80.999,80.972,12.34994813]
[1771854895988,12.34583143,80.999,80.973,0.75941918]
[1771854896169,43.47320735,80.999,80.973,0.75941918]
[1771854896868,12.60862878,80.999,80.973,0.75941918]
[1771854898284,12.34583143,80.999,80.973,0.75941918]
[1771854898466,12.33867186,81.046,80.991,0.75941918]
[1771854898668,0.79193034,81.045,81.011,0.75941918]
[1771854899175,0.79193034,81.039,81.011,0.75941918]
[1771854899568,13.13182026,81.038,81.011,13.10341451]
[1771854900079,13.13182026,81.038,81.012,0.75941918]
[1771854900380,10.27936065,81.03,81.012,0.75941918]
[1771854901478,12.34121133,81.03,80.991,0.75941918]
[1771854901682,53.47334255,81.03,80.991,0.75941918]
[1771854902284,54.26527289,81.03,80.991,0.75941918]
[1771854902464,10.27936065,81.04,81.011,0.75941918]
[1771854902665,0.79193034,81.049,81.012,0.75941918]
[1771854904685,0.79193034,81.039,81.014,0.75941918]
[1771854904888,0.79193034,81.029,80.999,0.75941918]
[1771854906686,10.27936065,81.03,81.001,0.75941918]
[1771854907272,22.62050389,81.03,81.001,0.75941918]
[1771854907480,10.27936065,81.06,81.021,0.75941918]
[1771854907792,11.07129099,81.06,81.021,0.75941918]
[1771854907972,0.79193034,81.059,81.021,0.75941918]
[1771854908306,10.27936065,81.05,81.021,0.75941918]
[1771854909090,12.33821515,81.049,81.021,0.75941918]
[1771854909290,10.27936065,81.04,81.021,0.75941918]
[1771854909491,0.79193034,81.048,81.023,0.75941918]
[1771854911277,12.33851962,81.047,81.023,0.75941918]
[1771854912271,10.27936065,81.05,81.025,0.75941918]
[1771854912475,12.33821515,81.049,81.025,0.75941918]
[1771854913381,11.07129099,81.04,81.017,12.34308848]
[1771854913582,0.79193034,81.04,81.018,0.75941918]
[1771854913783,0.79193034,81.048,81.018,0.75941918]
[1771854915395,12.33821515,81.049,81.02,0.75941918]
[1771854915596,12.33821515,81.049,81.021,0.75941918]
[1771854916988,0.79193034,81.075,81.041,0.75941918]
[1771854917303,12.33471014,81.073,80.91,0.2]
[1771854917494,6.45636081,80.91,80.87,0.2]
[1771854917806,6.45636081,80.91,80.821,12.37302186]
[1771854917807,7.67892586,80.88,80.821,12.37302186]
[1771854918098,55.6,80.909,80.725,49.55087527]
[1771854918099,3.83946293,80.84,80.725,49.55087527]
[1771854918400,3.83946293,80.81,80.779,0.86969192]
[1771854918599,3.83946293,80.8,80.779,0.86969192]
[1771854918780,0.7909997,80.834,80.779,0.86969192]
[1771854918977,3.83946293,80.8,80.779,0.86969192]
[1771854919295,0.87751884,80.836,80.779,0.86969192]
[1771854919594,10.33234827,80.8,80.752,30.95886822]
[1771854920110,10.33234827,80.79,80.752,12.38346482]
[1771854920305,10.33234827,80.8,80.75,0.2]
[1771854920603,10.33234827,80.79,80.75,12.58379174]
[1771854920802,12.37533183,80.806,80.75,10.53234827]
[1771854921003,10.33234827,80.79,80.759,12.38240386]
[1771854921401,10.33234827,80.79,80.753,12.38338656]
[1771854921688,10.33234827,80.78,80.752,12.38350561]
[1771854921910,10.33234827,80.78,80.75,0.2]
[1771854922205,12.37533183,80.806,80.761,12.38221418]
[1771854922388,10.33234827,80.81,80.761,12.38221418]
[1771854922705,10.33234827,80.81,80.77,10.33234827]
[1771854922880,10.33234827,80.81,80.772,0.02754759]
[1771854923084,10.33234827,80.82,80.772,0.02754759]
[1771854923719,0.87751884,80.828,80.791,0.02754759]
[1771854923890,12.3722039,80.827,80.791,0.02754759]
[1771854924395,10.33234827,80.82,80.791,0.02754759]
[1771854924799,12.3722039,80.827,80.791,0.02754759]
[1771854925000,10.33234827,80.83,80.792,0.06392123]
[1771854926113,10.33234827,80.84,80.801,0.0836888]
[1771854927010,10.33234827,80.83,80.801,0.0836888]
[1771854928397,10.33234827,80.83,80.8,12.37619466]
[1771854928596,10.33234827,80.83,80.79,0.12254541]
[1771854928995,3.69383402,80.865,80.781,43.32701996]
[1771854928996,10.33234827,80.82,80.782,0.14163963]
[1771854931108,0.87751884,80.829,80.791,0.17917265]
[1771854931319,10.33234827,80.83,80.791,0.17917265]
[1771854931999,10.33234827,80.82,80.791,0.17917265]
[1771854932201,10.33234827,80.82,80.793,0.19761645]
[1771854934520,10.33234827,80.82,80.794,12.37715671]
[1771854934820,0.87751884,80.829,80.794,12.37715671]
[1771854935000,10.33234827,80.82,80.794,12.37715671]
[1771854935202,0.87751884,80.829,80.794,12.62884319]
[1771854935621,0.87751884,80.829,80.795,0.25168648]
[1771854935792,0.87751884,80.851,80.801,0.25168648]
[1771854935997,10.33234827,80.84,80.801,0.25168648]
[1771854936496,10.33234827,80.84,80.803,0.26929739]
[1771854938504,10.33234827,80.84,80.786,49.51319925]
[1771854938505,10.33234827,80.83,80.804,12.37562496]
[1771854938705,10.33234827,80.83,80.777,49.51872793]
[1771854938706,10.33234827,80.81,80.794,12.37715671]
[1771854939424,0.87751884,80.837,80.78,0.32092571]
[1771854939611,10.33234827,80.82,80.781,0.32092571]
[1771854940523,10.33234827,80.82,80.782,43.32648362]
[1771854940819,10.33234827,80.82,80.783,0.33774134]
[1771854941301,12.37332805,80.819,80.783,0.33774134]
[1771854941503,0.87751884,80.818,80.783,0.33774134]
[1771854941701,1.05470075,80.868,80.784,1.23786888]
[1771854941901,1.05470075,80.859,80.82,10.33234827]
[1771854942315,1.05470075,80.849,80.785,3.69383402]
[1771854942514,1.05470075,80.847,80.811,12.37455296]
[1771854942903,1.05470075,80.847,80.811,43.31093538]
[1771854944628,1.05470075,80.847,80.82,10.33234827]
[1771854944927,1.05470075,80.847,80.799,0.06460249]
[1771854945123,1.05470075,80.847,80.81,10.33234827]
[1771854945302,1.05470075,80.847,80.82,10.31797847]
[1771854945924,1.05470075,80.847,80.81,10.31797847]
[1771854946309,1.05470075,80.839,80.8,10.31797847]
[1771854946516,1.05470075,80.839,80.81,10.31797847]
[1771854947218,1.05470075,80.839,80.82,10.31797847]
[1771854947414,1.05470075,80.85,80.82,10.31797847]
[1771854947822,49.4214944,80.937,80.831,1.08116258]
[1771854948010,10.31797847,80.87,80.83,10.31797847]
[1771854948212,10.31797847,80.86,80.823,6.2]
[1771854948732,12.36784252,80.855,80.811,43.31093538]
[1771854948921,10.31797847,80.84,80.811,43.31093538]
[1771854949809,1.06078125,80.839,80.811,43.31093538]
[1771854953531,1.06078125,80.839,80.801,43.31629558]
[1771854953739,10.31797847,80.85,80.811,1.08116258]
[1771854953913,10.31797847,80.87,80.831,1.08116258]
[1771854954117,10.31797847,80.86,80.831,1.08116258]
[1771854955019,10.31797847,80.87,80.831,1.08116258]
[1771854955340,10.31797847,80.86,80.823,1.08116258]
[1771854955739,10.31797847,80.85,80.824,43.30396911]
[1771854955941,1.06078125,80.849,80.824,43.30396911]
[1771854956639,1.06078125,80.849,80.824,43.08097315]
[1771854957024,1.06078125,80.849,80.824,12.14956664]
[1771854958031,1.06078125,80.829,80.81,12.37464565]
[1771854958936,1.06078125,80.829,80.8,10.31797847]
[1771854958937,1.06078125,80.829,80.801,12.37608445]
[1771854959848,10.31797847,80.83,80.802,1.08116258]
[1771854960048,1.06078125,80.838,80.802,1.08116258]
[1771854960224,1.06078125,80.849,80.811,1.08116258]
[1771854960425,1.06078125,80.848,80.811,1.08116258]
[1771854961039,1.06078125,80.848,80.812,43.31039944]
[1771854961245,1.06078125,80.848,80.813,1.08116258]
[1771854961642,1.06078125,80.858,80.821,1.08116258]
[1771854961839,10.31797847,80.85,80.821,1.08116258]
[1771854962042,1.06078125,80.849,80.812,43.31039944]
[1771854962241,1.06078125,80.849,80.813,1.08116258]
[1771854963326,1.06078125,80.847,80.814,12.37409359]
[1771854963522,1.06078125,80.847,80.814,43.30932758]
[1771854963726,1.06078125,80.847,80.814,12.37409359]
[1771854963940,11.37875972,80.84,80.814,12.37409359]
[1771854964143,1.06078125,80.839,80.814,12.37409359]
[1771854964349,12.35849522,80.916,80.832,1.08116258]
[1771854964649,3.69383402,80.906,80.85,10.31797847]
[1771854964851,105.04720943,80.916,80.85,10.31797847]
[1771854965148,3.69383402,80.913,80.85,10.31797847]
[1771854965349,3.69383402,80.913,80.851,12.36843081]
[1771854965529,43.25687165,80.912,80.851,43.28950785]
[1771854965737,10.31797847,80.87,80.851,12.36843081]
[1771854966444,1.06078125,80.874,80.851,12.36843081]
[1771854967531,10.31797847,80.87,80.844,12.36950175]
[1771854967847,1.06078125,80.869,80.844,12.36950175]
[1771854968848,1.06078125,80.869,80.84,10.31797847]
[1771854968849,12.36063385,80.902,80.816,1.08116258]
[1771854969033,10.31797847,80.86,80.831,1.08116258]
[1771854969230,1.06078125,80.859,80.772,49.52199339]
[1771854969435,10.31797847,80.83,80.79,10.31797847]
[1771854969638,10.31797847,80.82,80.78,10.31797847]
[1771854970529,1.06078125,80.837,80.773,3.69383402]
[1771854970841,10.31797847,80.82,80.78,10.31797847]
[1771854971244,10.31797847,80.82,80.781,1.08116258]
[1771854971439,12.37041985,80.838,80.781,1.08116258]
[1771854971440,10.31797847,80.81,80.781,1.08116258]
[1771854971641,10.31797847,80.81,80.783,1.08116258]
[1771854972144,1.06078125,80.819,80.783,1.08116258]
[1771854972343,10.31797847,80.81,80.783,1.08116258]
[1771854973233,10.31797847,80.8,80.783,1.08116258]
[1771854973737,10.31797847,80.81,80.784,13.45985142]
[1771854973941,10.31797847,80.81,80.784,44.40657354]
[1771854974349,10.31797847,80.81,80.784,13.45985142]
[1771854974542,11.37875972,80.81,80.784,12.37868884]
[1771854974747,1.06078125,80.809,80.784,12.37868884]
[1771854975253,1.06078125,80.799,80.784,12.37868884]
[1771854975459,1.06078125,80.799,80.784,11.05982041]
[1771854975952,1.06078125,80.799,80.766,1.08116258]
[1771854975953,10.31797847,80.79,80.766,1.08116258]
[1771854976334,10.31797847,80.79,80.76,0.2]
[1771854976741,10.64694578,80.79,80.761,12.38221418]
[1771854976936,0.32896731,80.789,80.761,12.38221418]
[1771854977352,10.31797847,80.77,80.75,0.2]
[1771854977537,10.4642623,80.78,80.751,12.38374756]
[1771854978053,0.18032245,80.779,80.751,12.38374756]
[1771854978254,10.31797847,80.77,80.75,0.2]
[1771854978444,10.31797847,80.76,80.743,12.38483714]
[1771854979356,0.18032245,80.765,80.743,12.38483714]
[1771854980058,10.31797847,80.75,80.73,0.2]
[1771854980241,10.31797847,80.75,80.73,12.58689796]
[1771854980447,10.31797847,80.75,80.73,0.2]
[1771854980749,0.02992825,80.758,80.73,0.2]
[1771854981061,0.02992825,80.766,80.731,1.38267442]
[1771854981362,10.31797847,80.75,80.73,0.2]
[1771854981660,3.69383402,80.776,80.73,0.2]
[1771854981661,10.31797847,80.76,80.73,0.2]
[1771854981839,10.36849886,80.76,80.73,12.58694922]
[1771854982162,10.31797847,80.75,80.73,0.2]
[1771854982552,10.31797847,80.74,80.73,0.12912398]
[1771854983141,10.31797847,80.74,80.73,0.10873188]
[1771854983845,10.31797847,80.75,80.73,0.10873188]
[1771854984050,12.38405429,80.749,80.73,0.10873188]
[1771854984356,0.02015787,80.748,80.73,0.10873188]
[1771854984756,10.31797847,80.74,80.73,0.08857401]
[1771854985358,12.38558812,80.739,80.72,0.2]
[1771854985565,10.31797847,80.73,80.72,0.2]
[1771854985760,10.31797847,80.73,80.7,0.2]
[1771854985964,10.31797847,80.72,80.7,0.2]
[1771854987752,22.70653874,80.72,80.7,0.2]
[1771854988743,10.31797847,80.72,80.7,0.2]
[1771854988943,12.38712234,80.729,80.702,1.43838741]
[1771854989153,10.31797847,80.73,80.702,1.43838741]
[1771854989344,10.31797847,80.74,80.711,1.43838741]
[1771854989646,10.31797847,80.75,80.711,1.43838741]
[1771854989967,10.31797847,80.74,80.711,1.43838741]
[1771854990352,10.31797847,80.74,80.713,1.43838741]
[1771854990654,12.38558812,80.739,80.713,1.43838741]
[1771854991045,0.13537573,80.749,80.713,1.43838741]
[1771854991655,10.31797847,80.74,80.713,1.43838741]
[1771854991857,10.31797847,80.72,80.701,12.39142018]
[1771854992458,10.31797847,80.72,80.7,0.2]
[1771854992660,10.31797847,80.71,80.7,0.2]
[1771854993568,10.31797847,80.72,80.701,12.39142018]
[1771854993771,10.31797847,80.72,80.7,0.2]
[1771854994264,10.31797847,80.73,80.701,12.39142018]
[1771854994450,10.31797847,80.72,80.701,12.39142018]
[1771854996064,10.31797847,80.72,80.7,1.63838741]
[1771854996252,10.31797847,80.72,80.7,0.2]
[1771854996458,12.38708518,80.73,80.69,0.2]
[1771854996459,0.0258494,80.709,80.69,0.2]
[1771854997366,10.31797847,80.71,80.69,0.2]
[1771854997748,12.39019192,80.709,80.69,0.15667458]
[1771854997944,12.39019192,80.709,80.68,0.2]
[1771854997945,10.31797847,80.7,80.68,0.2]
[1771854998144,10.31797847,80.69,80.68,0.2]
[1771854998568,10.31797847,80.69,80.67,0.2]
[1771854998748,10.31797847,80.68,80.67,0.2]
[1771854998946,10.31797847,80.69,80.67,0.2]
[1771854999165,12.39252998,80.694,80.67,0.2]
[1771854999166,10.31797847,80.68,80.67,0.2]
[1771855001373,12.39479914,80.679,80.66,1e-08]
[1771855001674,10.31797847,80.7,80.662,1.59400999]
[1771855001857,10.31797847,80.69,80.662,1.59400999]
[1771855002170,10.31797847,80.69,80.66,12.39764153]
[1771855002369,10.31797847,80.68,80.66,12.39764153]
[1771855002767,10.31797847,80.68,80.66,1e-08]
[1771855003065,12.39479914,80.679,80.66,1e-08]
[1771855003451,0.03373711,80.704,80.661,1.59400999]
[1771855003667,10.31797847,80.7,80.671,1.59400999]
[1771855004957,12.39172728,80.699,80.671,1.59400999]
[1771855005357,10.35801128,80.69,80.668,12.39636156]
[1771855005569,10.35801128,80.69,80.662,1.59400999]
[1771855005866,10.35801128,80.69,80.66,1e-08]
[1771855006075,10.35801128,80.68,80.66,1e-08]
[1771855006274,10.35801128,80.69,80.66,12.39757383]
[1771855006660,10.35801128,80.68,80.66,1e-08]
[1771855007259,12.39479914,80.679,80.66,1e-08]
[1771855007657,10.35801128,80.67,80.66,1e-08]
[1771855007872,10.35801128,80.67,80.654,0.13626071]
[1771855008075,10.35801128,80.66,80.654,0.13626071]
[1771855008773,10.35801128,80.67,80.654,0.13626071]
[1771855009157,10.35801128,80.68,80.651,12.3991023]
[1771855009353,10.35801128,80.68,80.652,1.65140875]
[1771855009876,0.03108179,80.679,80.65,0.2]
[1771855010176,0.03108179,80.679,80.65,12.5991299]
[1771855010664,10.35801128,80.67,80.65,0.2]
[1771855010867,49.56365778,80.705,80.65,0.2]
[1771855010868,10.35801128,80.68,80.651,12.3991023]
[1771855011068,10.35801128,80.68,80.652,1.65140875]
[1771855011865,10.35801128,80.69,80.661,1.65140875]
[1771855012071,12.39326302,80.689,80.661,1.65140875]
[1771855012573,10.35801128,80.68,80.661,1.65140875]
[1771855012872,10.35801128,80.68,80.661,14.0488227]
[1771855013059,12.48574094,80.679,80.651,12.3991023]
[1771855013259,0.0909418,80.679,80.651,12.3991023]
[1771855013656,10.35801128,80.68,80.652,1.65140875]
[1771855014179,10.35801128,80.7,80.661,1.65140875]
[1771855014355,0.10533785,80.689,80.651,43.39685806]
[1771855014554,0.10533785,80.689,80.65,0.2]
[1771855014555,10.35801128,80.67,80.652,1.65140875]
[1771855014760,10.35801128,80.66,80.65,0.2]
[1771855015478,10.35801128,80.67,80.65,0.2]
[1771855015680,10.35801128,80.67,80.651,12.3991023]
[1771855015980,10.35801128,80.67,80.65,1.85140875]
[1771855016182,10.35801128,80.67,80.65,14.25063249]
[1771855018084,10.35801128,80.66,80.65,1.85140875]
[1771855018286,10.35801128,80.67,80.65,1.85140875]
[1771855019565,10.35801128,80.66,80.65,0.2]
[1771855020375,0.10533785,80.678,80.651,12.3991023]
[1771855020376,10.35801128,80.67,80.651,12.3991023]
[1771855020577,0.10533785,80.678,80.65,0.2]
[1771855020578,10.35801128,80.66,80.652,1.65140875]
[1771855022286,10.35801128,80.66,80.65,0.2]
[1771855022693,53.75008394,80.66,80.615,1.75140875]
[1771855022994,10.35801128,80.63,80.615,1.75140875]
[1771855024764,10.35801128,80.65,80.617,1.75140875]
[1771855024985,10.35801128,80.66,80.621,1.75140875]
[1771855026587,10.35801128,80.66,80.631,1.75140875]
[1771855027084,31.06224431,80.687,80.641,1.75140875]
[1771855027286,10.35801128,80.68,80.641,1.75140875]
[1771855029799,12.39372381,80.686,80.643,1.75140875]
[1771855029800,10.35801128,80.67,80.643,1.75140875]
[1771855032895,10.35801128,80.67,80.645,1.75140875]
[1771855033894,10.35801128,80.67,80.647,1.75140875]
[1771855036181,10.35801128,80.67,80.649,1.75140875]
[1771855039096,10.35801128,80.67,80.65,12.39925604]
[1771855039305,3.86924977,80.67,80.65,12.39925604]
[1771855039497,3.86924977,80.68,80.651,1.77036455]
[1771855041582,3.86924977,80.68,80.653,1.77036455]
[1771855041778,3.86924977,80.69,80.653,1.77036455]
[1771855041988,3.86924977,80.69,80.652,43.39631998]
[1771855041989,3.86924977,80.69,80.661,1.77036455]
[1771855042801,3.86924977,80.69,80.663,1.77036455]
[1771855043702,12.39195454,80.698,80.663,1.77036455]
[1771855044491,3.86924977,80.69,80.663,1.77036455]
[1771855046300,3.86924977,80.7,80.665,1.77036455]
[1771855047208,3.86924977,80.7,80.671,1.77036455]
[1771855047503,3.86924977,80.7,80.673,1.77036455]
[1771855047716,12.3904462,80.708,80.68,3.86924977]
[1771855048010,12.69906347,80.715,80.681,1.77036455]
[1771855048192,0.31884363,80.714,80.681,1.77036455]
[1771855048399,0.31884363,80.729,80.691,1.77036455]
[1771855048711,0.31884363,80.728,80.691,1.77036455]
[1771855048912,3.86924977,80.72,80.691,1.77036455]
[1771855049111,0.32792873,80.719,80.691,1.77036455]
[1771855049607,12.38881042,80.718,80.691,1.77036455]
[1771855050506,3.86924977,80.71,80.691,1.77036455]
[1771855050808,0.33690948,80.717,80.691,1.77036455]
[1771855051588,0.34578708,80.709,80.671,1.77036455]
[1771855051910,0.34578708,80.699,80.671,1.77036455]
[1771855053415,12.39188083,80.698,80.671,1.77036455]
[1771855055514,12.39188083,80.698,80.673,1.77036455]
[1771855057614,12.39188083,80.698,80.675,1.77036455]
[1771855057819,0.39695186,80.712,80.681,1.77036455]
[1771855058015,0.39695186,80.709,80.681,1.77036455]
[1771855059712,12.80357916,80.708,80.681,14.16480661]
[1771855060220,0.42123466,80.707,80.681,14.16480661]
[1771855060813,0.42123466,80.707,80.681,1.77036455]
[1771855060993,0.4291437,80.71,80.683,1.77036455]
[1771855061199,12.38976108,80.712,80.691,1.77036455]
[1771855061395,12.81817799,80.717,80.691,1.77036455]
[1771855062119,12.81817799,80.717,80.692,1.77036455]
[1771855066320,12.81817799,80.717,80.694,1.77036455]
[1771855067423,12.38903429,80.717,80.696,1.77036455]
[1771855068625,4.35380622,80.72,80.696,1.77036455]
[1771855068927,0.48923182,80.719,80.696,1.77036455]
[1771855071234,12.89918164,80.718,80.696,1.77036455]
[1771855076634,12.38881042,80.718,80.696,1.77036455]
[1771855076823,12.93230962,80.722,80.696,1.77036455]
[1771855077019,3.8645744,80.72,80.696,1.77036455]
[1771855077827,0.55051429,80.719,80.696,1.77036455]
[1771855078730,12.38881042,80.718,80.696,1.77036455]
[1771855079727,0.56328878,80.732,80.698,1.82877732]
[1771855079934,3.69383402,80.741,80.698,1.82877732]
[1771855079935,3.8645744,80.72,80.698,1.82877732]
[1771855080116,4.43414059,80.72,80.698,1.82877732]
[1771855080529,0.56956619,80.719,80.698,1.82877732]
[1771855081230,0.5757715,80.719,80.699,12.39172728]
[1771855082334,0.5757715,80.719,80.696,1.82877732]
[1771855083140,0.58796911,80.709,80.674,1.82877732]
[1771855083326,4.45254351,80.7,80.674,1.82877732]
[1771855083516,0.58796911,80.699,80.674,1.82877732]
[1771855084817,3.8645744,80.7,80.674,1.82877732]
[1771855085232,12.39172728,80.699,80.674,1.82877732]
[1771855085432,3.8645744,80.7,80.674,1.82877732]
[1771855085738,12.39065249,80.706,80.675,1.82877732]
[1771855086317,12.99639764,80.706,80.675,1.82877732]
[1771855088535,0.61725817,80.705,80.677,1.82877732]
[1771855090541,3.8645744,80.7,80.677,1.82877732]
[1771855090838,3.8645744,80.7,80.678,14.22373009]
[1771855091338,4.49861092,80.7,80.678,14.22373009]
[1771855091544,0.63403652,80.699,80.679,1.82877732]
[1771855092132,3.8645744,80.69,80.673,1.82877732]
[1771855092344,0.63403652,80.699,80.673,1.82877732]
[1771855092920,1.94659203,80.679,80.641,31.00157864]
[1771855093736,43.37158292,80.698,80.65,3.8645744]
[1771855094038,1.94659203,80.689,80.65,3.8645744]
[1771855094239,5.81116643,80.68,80.65,3.8645744]